bitfinex/quotes_SOLUSD_20250517
["timestamp","ask_amount","ask_price","bid_price","bid_amount"]
[1747472518414,142.8482464,168.12,168.04,28.00115618]
[1747472518786,142.8482464,168.12,168.05,2.21413962]
[1747472519496,142.8482464,168.12,168.07,18.64964886]
[1747472520205,142.8482464,168.12,168.05,9.35086538]
[1747472520834,136.9,168.12,168.05,9.35086538]
[1747472521007,136.9,168.12,168.05,10.92856538]
[1747472521521,5.94671741,168.16,168.09,18.64964886]
[1747472521687,5.94671741,168.16,168.09,18.98]
[1747472522104,31.94671741,168.16,168.09,18.98]
[1747472522312,136.9,168.15,168.09,18.98]
[1747472523203,5.94742476,168.14,168.09,18.98]
[1747472523433,20.81598667,168.14,168.09,18.98]
[1747472523611,26.0,168.13,168.07,3.40056928]
[1747472524029,26.0,168.13,168.05,18.64964886]
[1747472524235,26.0,168.13,168.05,24.60024328]
[1747472524539,5.94742476,168.14,168.06,2.21484479]
[1747472524746,5.94742476,168.14,168.07,18.64964886]
[1747472525116,136.9,168.15,168.1,5.94883997]
[1747472525344,5.94681927,168.16,168.09,43.61873474]
[1747472525851,5.94681927,168.16,168.1,2.21484479]
[1747472526638,5.94681927,168.16,168.09,37.66964886]
[1747472527340,5.94681927,168.16,168.09,43.61874613]
[1747472528143,5.94681927,168.16,168.11,18.64964886]
[1747472528824,5.94646721,168.17,168.1,18.64964886]
[1747472529628,5.94646721,168.17,168.11,2.21529135]
[1747472530445,5.94646721,168.17,168.1,28.00113707]
[1747472531250,5.94646721,168.17,168.1,22.05249088]
[1747472531847,5.94646721,168.17,168.11,2.21618948]
[1747472532850,5.94646721,168.17,168.12,2.21618948]
[1747472533550,5.9460606,168.18,168.13,18.64964886]
[1747472533929,24.92570505,168.19,168.14,2.21618948]
[1747472536945,24.92570505,168.19,168.13,22.05495391]
[1747472537149,24.92570505,168.19,168.13,28.00260472]
[1747472537338,24.92570505,168.19,168.13,24.59729967]
[1747472537537,5.94530321,168.2,168.12,5.94808802]
[1747472537739,5.94530321,168.2,168.13,20.86400254]
[1747472538258,20.80856123,168.2,168.13,20.86400254]
[1747472538954,20.80856123,168.2,168.11,9.35369418]
[1747472539161,5.94530321,168.2,168.12,18.64964886]
[1747472539661,5.94530321,168.2,168.12,24.59743995]
[1747472540545,5.94530321,168.2,168.13,2.21311079]
[1747472541234,5.94530321,168.2,168.13,8.16078455]
[1747472541433,5.94530321,168.2,168.15,18.64964886]
[1747472542160,5.94530321,168.2,168.13,5.94767376]
[1747472542658,5.94530321,168.2,168.11,18.64964886]
[1747472542834,20.80856123,168.2,168.12,2.21256686]
[1747472543758,20.80856123,168.2,168.14,18.64964886]
[1747472544629,5.94530321,168.2,168.14,18.64964886]
[1747472545954,5.94530321,168.2,168.12,18.64964886]
[1747472546461,5.94530321,168.2,168.14,18.64964886]
[1747472547168,5.94530321,168.2,168.12,18.64964886]
[1747472547374,26.0,168.17,168.11,3.39942228]
[1747472547526,26.0,168.17,168.1,18.64964886]
[1747472548233,26.0,168.17,168.11,2.21418686]
[1747472549050,136.9,168.19,168.12,20.86383572]
[1747472549646,5.94608027,168.18,168.12,26.81188941]
[1747472549846,5.94608027,168.18,168.14,18.64964886]
[1747472550858,5.94608027,168.18,168.09,40.87278582]
[1747472550859,142.84572327,168.19,168.1,24.59848883]
[1747472551043,136.9,168.19,168.1,45.67168877]
[1747472551246,142.84569755,168.19,168.1,45.67168877]
[1747472551567,142.84569755,168.19,168.12,18.64964886]
[1747472552147,142.84569755,168.19,168.14,18.64964886]
[1747472552352,142.84569755,168.19,168.13,2.21578722]
[1747472553169,6.3969,168.18,168.13,2.21578722]
[1747472553339,1.6198,168.17,168.13,2.21578722]
[1747472553956,1.6198,168.17,168.11,7.66060955]
[1747472554874,26.0,168.15,168.11,7.66060955]
[1747472555067,26.0,168.15,168.08,3.4037983]
[1747472555378,136.9,168.14,168.08,3.4037983]
[1747472555546,136.9,168.14,168.09,2.21682565]
[1747472556145,136.9,168.14,168.1,2.21682565]
[1747472556863,5.9477785,168.13,168.08,2.21682565]
[1747472558472,5.9477785,168.13,168.07,2.21682565]
[1747472559466,5.9477785,168.13,168.07,20.86647451]
[1747472560480,5.9477785,168.13,168.08,2.21682565]
[1747472562378,136.9,168.12,168.08,2.21682565]
[1747472562550,5.94848611,168.11,168.08,2.21682565]
[1747472562951,5.94848611,168.11,168.06,2.21682565]
[1747472563365,22.33810138,168.11,168.06,2.21682565]
[1747472563563,22.33810138,168.11,168.05,2.21682565]
[1747472564247,22.33810138,168.11,168.06,2.21682565]
[1747472565185,22.33810138,168.11,168.04,2.21682565]
[1747472565366,5.94919388,168.09,168.04,2.21682565]
[1747472565960,5.94919388,168.09,168.05,2.21682565]
[1747472566659,5.94919388,168.09,168.04,2.21682565]
[1747472567263,142.84892728,168.1,168.05,18.64964886]
[1747472567476,142.84892728,168.1,168.06,2.21682565]
[1747472571310,142.84892728,168.1,168.04,2.21682565]
[1747472572403,142.84892728,168.1,168.05,2.21682565]
[1747472572988,142.84892728,168.1,168.06,2.21682565]
[1747472574114,142.84892728,168.1,168.03,18.64964886]
[1747472574811,142.84892728,168.1,168.03,5.95130184]
[1747472575186,142.84892728,168.1,168.05,18.64964886]
[1747472576503,142.84892728,168.1,168.06,2.21569464]
[1747472577315,142.84892728,168.1,168.05,18.64964886]
[1747472577522,142.84892728,168.1,168.03,18.64964886]
[1747472578411,142.84892728,168.1,168.05,18.64964886]
[1747472579320,142.84892728,168.1,168.02,18.64964886]
[1747472579902,142.84892728,168.1,168.03,2.21505881]
[1747472580530,142.84892728,168.1,168.04,2.21505881]
[1747472581125,26.0,168.09,168.04,2.21505881]
[1747472581323,26.0,168.07,168.04,2.21505881]
[1747472581539,26.0,168.07,168.03,2.21505881]
[1747472582015,143.4756,168.06,168.03,2.21505881]
[1747472582212,1.5802,168.05,168.03,2.21505881]
[1747472582542,1.5802,168.05,168.0,4.25681125]
[1747472582759,5.95096405,168.04,168.0,4.25681125]
[1747472583050,46.82837419,168.04,168.0,4.25681125]
[1747472583519,26.0,168.01,168.0,4.25681125]
[1747472584551,136.9,168.03,168.0,4.25681125]
[1747472584721,1.5802,168.05,168.0,4.25681125]
[1747472585049,7.53090805,168.05,168.01,18.64964886]
[1747472585222,7.53090805,168.05,167.98,19.18]
[1747472585420,7.53090805,168.05,167.99,18.64964886]
[1747472585720,22.40743289,168.05,167.97,18.64964886]
[1747472585918,159.30743289,168.05,167.97,18.64964886]
[1747472586741,159.30743289,168.05,167.96,19.18]
[1747472586943,156.06,168.04,167.96,19.18]
[1747472587546,26.0,168.01,167.94,18.64964886]
[1747472587930,26.0,168.01,167.95,2.21146183]
[1747472588622,5.95238095,168.0,167.95,2.21146183]
[1747472588821,5.95238095,168.0,167.93,18.64964886]
[1747472589052,5.95238095,168.0,167.93,22.04522591]
[1747472589436,5.95238095,168.0,167.94,2.21053597]
[1747472589842,5.9513666,168.03,167.94,2.21053597]
[1747472590138,136.9,168.04,167.96,18.64964886]
[1747472590530,142.85101478,168.04,167.98,18.64964886]
[1747472590734,142.85101478,168.04,167.98,37.88964886]
[1747472591149,142.85101478,168.04,167.98,43.8426572]
[1747472591445,136.9,168.04,167.98,43.8426572]
[1747472591647,7.53003144,168.08,167.98,71.3979572]
[1747472591947,5.94983144,168.08,168.0,18.64964886]
[1747472592257,155.66511247,168.09,168.0,18.64964886]
[1747472592428,18.76511247,168.09,168.02,18.64964886]
[1747472592618,18.76511247,168.09,168.02,24.60098196]
[1747472592619,24.71439631,168.09,168.02,24.60098196]
[1747472593352,24.71439631,168.09,168.03,2.21053597]
[1747472593847,18.76511247,168.09,168.04,37.88964886]
[1747472594249,18.76511247,168.09,168.06,18.64964886]
[1747472594748,24.71440472,168.09,168.05,2.21053597]
[1747472595053,26.0,168.06,168.05,2.21053597]
[1747472595255,26.0,168.06,168.01,19.26]
[1747472595551,26.0,168.06,168.02,18.64964886]
[1747472595752,5.95015891,168.07,168.02,18.64964886]
[1747472596152,20.82491347,168.07,168.01,19.26]
[1747472598062,26.85421347,168.07,168.01,19.26]
[1747472598267,26.85421347,168.07,167.97,18.64964886]
[1747472598431,162.9,168.06,167.98,2.21505384]
[1747472599053,26.0,168.03,167.98,2.21505384]
[1747472599263,26.0,168.03,167.95,18.64964886]
[1747472599944,26.0,168.03,167.95,22.05203548]
[1747472600135,5.95167241,168.02,167.96,2.21482308]
[1747472601059,5.95167241,168.02,167.95,22.05203548]
[1747472601750,5.95121757,168.04,167.95,28.00610297]
[1747472601942,142.8506214,168.05,167.95,42.89148552]
[1747472602537,142.8506214,168.05,167.97,18.64964886]
[1747472602738,142.8506214,168.05,167.98,2.21478219]
[1747472603258,142.8506214,168.05,167.99,2.21478219]
[1747472603454,142.8506214,168.05,168.0,18.64964886]
[1747472603658,136.9,168.05,168.0,18.64964886]
[1747472603838,5.94999812,168.07,168.0,18.64964886]
[1747472604031,31.94965092,168.08,168.0,37.94964886]
[1747472604264,157.27941247,168.09,168.02,18.64964886]
[1747472604459,163.22865837,168.09,168.02,18.64964886]
[1747472606066,26.0,168.07,167.95,44.64964886]
[1747472606272,26.0,168.07,167.98,18.64964886]
[1747472606458,26.0,168.07,167.99,2.2157858]
[1747472606654,136.9,168.06,167.99,2.2157858]
[1747472607544,136.9,168.06,167.98,18.64964886]
[1747472607746,5.95060993,168.05,167.98,18.64964886]
[1747472608052,20.82713477,168.05,167.98,18.64964886]
[1747472608557,5.95060993,168.05,167.98,18.64964886]
[1747472608754,5.95060993,168.05,167.98,22.05361248]
[1747472608966,5.95060993,168.05,167.99,2.21610791]
[1747472609972,5.95060993,168.05,167.98,28.00668501]
[1747472610144,5.95060993,168.05,167.98,22.05361248]
[1747472611280,20.82713477,168.05,167.99,2.21664408]
[1747472611576,26.0,168.04,167.99,2.21664408]
[1747472611772,32.4774,168.04,167.99,2.21664408]
[1747472612256,32.4774,168.04,167.96,22.05361248]
[1747472612575,20.82961375,168.03,167.96,22.05361248]
[1747472612873,157.72961375,168.03,167.97,2.21699636]
[1747472613787,157.72961375,168.03,167.96,18.64964886]
[1747472614761,159.31251375,168.03,167.96,18.64964886]
[1747472615259,159.31251375,168.03,167.97,2.21708473]
[1747472616348,159.31251375,168.03,167.96,18.64964886]
[1747472616873,136.9,168.02,167.94,3.40396362]
[1747472617255,136.9,168.02,167.95,2.21747485]
[1747472618309,5.95202666,168.01,167.95,18.64964886]
[1747472619116,5.95202666,168.01,167.93,18.64964886]
[1747472619496,5.95202666,168.01,167.94,2.21777615]
[1747472619889,5.95202666,168.01,167.95,18.64964886]
[1747472620088,5.95202666,168.01,167.95,20.86742501]
[1747472620311,5.95202666,168.01,167.95,2.21777615]
[1747472620982,5.95202666,168.01,167.95,18.64964886]
[1747472621503,20.83209332,168.01,167.95,18.64964886]
[1747472621687,26.0,167.98,167.96,2.21777615]
[1747472622707,26.0,167.98,167.95,2.21777615]
[1747472623785,5.95344406,167.97,167.95,2.21777615]
[1747472624709,5.95344406,167.97,167.94,2.21777615]
[1747472625392,5.95344406,167.97,167.95,2.21777615]
[1747472626014,5.95344406,167.97,167.94,2.21777615]
[1747472628116,5.95344406,167.97,167.93,18.64964886]
[1747472628296,5.95344406,167.97,167.92,3.40396362]
[1747472629307,5.95344406,167.97,167.93,2.22061354]
[1747472629491,20.83705422,167.97,167.93,2.22061354]
[1747472629684,20.83705422,167.97,167.91,22.90646011]
[1747472629925,1.5333,167.96,167.91,22.90646011]
[1747472630106,5.95415302,167.95,167.91,22.90646011]
[1747472630609,5.95415302,167.95,167.92,2.2196776]
[1747472631289,5.95415302,167.95,167.91,18.64964886]
[1747472632402,5.95415302,167.95,167.89,18.64964886]
[1747472633196,5.95415302,167.95,167.9,2.21868121]
[1747472634214,5.95415302,167.95,167.91,2.21868121]
[1747472635135,5.95415302,167.95,167.88,22.05361248]
[1747472635930,20.83953557,167.95,167.89,2.21743668]
[1747472636605,20.83953557,167.95,167.9,2.21743668]
[1747472637410,20.83953557,167.95,167.88,18.64964886]
[1747472638235,20.83953557,167.95,167.89,2.21773122]
[1747472639232,20.83953557,167.95,167.9,2.21773122]
[1747472639936,20.83953557,167.95,167.89,2.21773122]
[1747472641040,157.73953557,167.95,167.89,2.21773122]
[1747472641721,136.9,167.94,167.89,2.21773122]
[1747472642241,136.9,167.94,167.88,2.21773122]
[1747472642633,5.95486214,167.93,167.88,2.21773122]
[1747472642834,20.8420175,167.93,167.88,2.21773122]
[1747472643347,26.0,167.89,167.88,2.21773122]
[1747472643515,26.0,167.89,167.86,3.40396362]
[1747472644144,26.0,167.89,167.81,18.64964886]
[1747472644319,136.9,167.88,167.81,18.64964886]
[1747472644530,136.9,167.88,167.82,2.21718247]
[1747472645122,142.8568737,167.88,167.82,2.21718247]
[1747472645329,142.8568737,167.88,167.83,2.21718247]
[1747472646252,142.8568737,167.88,167.81,28.01252754]
[1747472646548,142.8568737,167.88,167.81,28.01269544]
[1747472647059,142.8568737,167.88,167.81,22.05361248]
[1747472647229,26.0,167.85,167.81,3.40396362]
[1747472647969,26.0,167.85,167.76,24.61054537]
[1747472648168,26.0,167.85,167.77,2.21429202]
[1747472648398,26.0,167.85,167.78,18.64964886]
[1747472648979,26.0,167.85,167.79,2.21429202]
[1747472649161,19.22,167.86,167.8,18.64964886]
[1747472649566,19.22,167.86,167.81,2.21429202]
[1747472650204,25.17742734,167.86,167.8,18.64964886]
[1747472651914,136.9,167.87,167.8,5.95941712]
[1747472652080,136.9,167.87,167.81,18.64964886]
[1747472652283,136.9,167.87,167.83,18.64964886]
[1747472652682,142.85706765,167.87,167.83,18.64964886]
[1747472653005,142.85706765,167.87,167.82,2.21173722]
[1747472653402,142.85706765,167.87,167.79,18.64964886]
[1747472654209,142.85706765,167.87,167.81,18.64964886]
[1747472654882,142.85706765,167.87,167.79,18.64964886]
[1747472655390,157.74954397,167.87,167.79,18.64964886]
[1747472657482,157.74954397,167.87,167.78,18.64964886]
[1747472658205,157.74954397,167.87,167.77,18.64964886]
[1747472658375,26.0,167.84,167.77,18.64964886]
[1747472658581,1.5982,167.83,167.77,18.64964886]
[1747472660106,5.95876534,167.82,167.77,18.64964886]
[1747472660400,31.95816684,167.84,167.77,5.96050666]
[1747472660605,26.0,167.84,167.77,5.96050666]
[1747472660808,136.9,167.86,167.78,18.64964886]
[1747472661500,136.9,167.86,167.8,18.64964886]
[1747472661808,57.63246665,167.89,167.82,18.64964886]
[1747472662288,57.63246665,167.89,167.84,18.64964886]
[1747472664405,57.63246665,167.89,167.86,18.64964886]
[1747472664706,26.0,167.93,167.86,18.64964886]
[1747472665606,26.0,167.93,167.87,2.21162606]
[1747472665804,31.95493157,167.93,167.87,2.21162606]
[1747472666308,31.95493157,167.93,167.86,18.64964886]
[1747472666701,31.95493157,167.93,167.86,5.95721937]
[1747472667287,5.95493157,167.93,167.86,5.95721937]
[1747472667490,5.95461064,167.94,167.86,5.95721937]
[1747472667693,5.95461064,167.94,167.87,18.64964886]
[1747472668807,5.95423866,167.95,167.89,18.64964886]
[1747472669390,5.95423866,167.95,167.88,18.64964886]
[1747472670009,5.95423866,167.95,167.89,5.95628089]
[1747472670224,5.95423866,167.95,167.89,8.17004268]
[1747472670914,5.95423866,167.95,167.91,18.64964886]
[1747472671418,136.9,167.97,167.91,18.64964886]
[1747472671594,136.9,167.97,167.91,24.60518036]
[1747472672531,136.9,167.97,167.93,18.64964886]
[1747472673120,136.9,167.97,167.91,5.9555315]
[1747472673319,136.9,167.97,167.91,18.64964886]
[1747472674615,136.9,167.97,167.93,18.64964886]
[1747472674817,51.19200395,168.02,167.93,18.64964886]
[1747472675302,51.19200395,168.02,167.95,24.60380188]
[1747472676318,51.19200395,168.02,167.95,18.64964886]
[1747472676994,19.24,168.02,167.95,18.64964886]
[1747472677196,19.24,168.02,167.96,5.95379852]
[1747472677411,5.95176502,168.02,167.97,18.64964886]
[1747472680423,7.51305303,168.03,167.97,5.95325895]
[1747472680724,142.85103361,168.04,167.97,5.95325895]
[1747472681225,1.6409,168.07,167.97,5.95325895]
[1747472681226,1.6409,168.07,167.98,37.88964886]
[1747472681399,142.84928155,168.09,167.98,126.59644886]
[1747472681602,136.9,168.09,168.0,20.21384886]
[1747472682521,142.84930511,168.09,168.02,18.64964886]
[1747472684325,142.84930511,168.09,168.04,18.64964886]
[1747472685028,142.84930511,168.09,168.02,18.64964886]
[1747472686204,142.84930511,168.09,168.01,18.64964886]
[1747472687410,142.84930511,168.09,168.03,18.64964886]
[1747472688628,142.84930511,168.09,168.0,5.95215057]
[1747472689827,142.84930511,168.09,168.01,5.95201414]
[1747472690327,157.72228982,168.09,167.99,18.64964886]
[1747472692026,157.72228982,168.09,167.99,24.60227929]
[1747472694303,157.72228982,168.09,168.01,18.64964886]
[1747472699636,142.84930511,168.09,168.01,24.601389]
[1747472700544,142.84930511,168.09,167.97,26.0]
[1747472700749,27.5766,168.08,167.97,31.95342636]
[1747472700959,32.6208,168.07,167.98,18.64964886]
[1747472701247,26.0,168.03,167.91,4.25681125]
[1747472701448,26.0,168.03,167.93,19.2]
[1747472701620,6.6208,168.02,167.91,4.25681125]
[1747472701823,26.0,167.98,167.91,4.25681125]
[1747472702124,6.6208,167.97,167.91,4.25681125]
[1747472702521,1.5705,167.96,167.91,4.25681125]
[1747472702722,46.83953557,167.95,167.91,4.25681125]
[1747472703109,49.8210813,167.95,167.91,4.25681125]
[1747472703310,26.0,167.92,167.91,4.25681125]
[1747472703516,45.24,167.92,167.91,4.25681125]
[1747472704011,6.0464,167.91,167.8,38.48]
[1747472704243,6.0464,167.91,167.81,18.64964886]
[1747472704847,5.95592614,167.9,167.79,25.31977615]
[1747472705010,5.95592614,167.9,167.8,20.85325626]
[1747472705211,20.8457415,167.9,167.8,20.85325626]
[1747472705405,26.0,167.87,167.8,2.2036074]
[1747472706138,26.0,167.87,167.77,18.64964886]
[1747472706466,1.5705,167.89,167.81,18.64964886]
[1747472706616,1.5705,167.89,167.83,24.60802476]
[1747472706815,12.00198134,167.91,167.83,24.60802476]
[1747472707021,6.0464,167.91,167.83,50.60802476]
[1747472707458,12.00197485,167.91,167.83,18.64964886]
[1747472708015,12.00197485,167.91,167.83,24.60792743]
[1747472708241,6.0464,167.91,167.83,24.60792743]
[1747472708618,1.5705,167.93,167.86,18.64964886]
[1747472709048,7.5255338,167.93,167.86,18.64964886]
[1747472709209,7.5255338,167.93,167.84,18.64964886]
[1747472710237,22.41268916,167.93,167.82,19.48]
[1747472710540,22.41268916,167.93,167.83,18.64964886]
[1747472711239,1.5705,167.93,167.83,18.64964886]
[1747472711458,6.6394,167.95,167.87,18.64964886]
[1747472711643,5.95386318,167.96,167.89,18.64964886]
[1747472711829,7.56781402,167.97,167.89,18.64964886]
[1747472712155,1.6143,167.97,167.89,18.64964886]
[1747472712362,25.31280032,167.99,167.91,18.64964886]
[1747472712855,12.59180371,168.0,167.91,18.64964886]
[1747472713027,12.59187829,168.0,167.91,18.64964886]
[1747472713659,26.0,167.97,167.89,18.64964886]
[1747472713966,26.0,167.96,167.88,18.64964886]
[1747472714257,5.95415302,167.95,167.88,18.64964886]
[1747472716342,25.31385701,167.96,167.88,24.60613461]
[1747472716663,25.31385701,167.96,167.88,18.64964886]
[1747472716973,25.31385701,167.96,167.8,4.25681125]
[1747472716974,26.0,167.93,167.8,4.25681125]
[1747472717262,27.6371,167.92,167.83,19.52]
[1747472717470,6.4598,167.91,167.8,5.95940755]
[1747472717760,6.4598,167.91,167.81,18.64964886]
[1747472718539,5.95592614,167.9,167.81,18.64964886]
[1747472719064,5.95592614,167.9,167.81,24.60868555]
[1747472719265,1.6371,167.92,167.84,18.64964886]
[1747472719669,19.36,167.94,167.84,18.64964886]
[1747472719836,6.4598,167.96,167.84,18.64964886]
[1747472720364,6.4598,167.96,167.86,18.64964886]
[1747472720548,6.4598,167.96,167.85,2.20102694]
[1747472720549,5.95423288,167.95,167.88,18.64964886]
[1747472720949,20.83961543,167.95,167.88,18.64964886]
[1747472721865,5.95423288,167.95,167.88,18.64964886]
[1747472722243,12.41364559,167.96,167.88,18.64964886]
[1747472722443,12.41364559,167.96,167.88,24.6060702]
[1747472723146,5.95352664,167.97,167.88,24.6060702]
[1747472723339,19.36,167.99,167.9,18.64964886]
[1747472723538,5.95277186,167.99,167.9,18.64964886]
[1747472723761,142.85247024,168.0,167.9,18.64964886]
[1747472723974,5.9515837,168.03,167.9,18.64964886]
[1747472724146,31.9515837,168.03,167.9,18.64964886]
[1747472724348,31.9515837,168.03,167.92,18.64964886]
[1747472724563,31.9515837,168.03,167.94,18.64964886]
[1747472724740,5.9515837,168.03,167.94,18.64964886]
[1747472724935,26.0,168.01,167.89,26.0]
[1747472725252,26.0,167.97,167.9,18.64964886]
[1747472725456,26.0,167.95,167.87,19.58]
[1747472725769,26.0,167.95,167.84,18.64964886]
[1747472725770,6.4598,167.94,167.84,18.64964886]
[1747472726480,5.95486214,167.93,167.84,5.95805529]
[1747472726683,5.95486214,167.93,167.85,18.64964886]
[1747472726881,5.95486214,167.93,167.84,5.95805529]
[1747472726882,12.41439518,167.94,167.84,24.60770415]
[1747472727043,136.9,167.95,167.85,18.64964886]
[1747472727380,142.85432188,167.95,167.87,18.64964886]
[1747472727687,7.47145668,167.96,167.87,18.64964886]
[1747472728875,19.36,167.97,167.87,39.49903684]
[1747472729039,31.99323279,167.98,167.87,39.49903684]
[1747472729040,5.95310447,167.98,167.87,41.14743684]
[1747472729242,5.95310447,167.98,167.87,123.24743684]
[1747472729446,5.95310447,167.98,167.89,18.64964886]
[1747472729676,5.95310447,167.98,167.91,18.64964886]
[1747472729873,31.95277045,167.99,167.91,18.64964886]
[1747472730173,7.47775195,168.0,167.91,18.64964886]
[1747472730339,5.95245195,168.0,167.91,18.64964886]
[1747472731070,162.815,168.02,167.93,18.64964886]
[1747472731256,156.26,168.02,167.93,18.64964886]
[1747472731566,7.47629671,168.04,167.93,18.64964886]
[1747472731748,7.47629671,168.04,167.95,18.64964886]
[1747472732065,1.5253,168.04,167.97,18.64964886]
[1747472732271,7.47637075,168.04,167.97,18.64964886]
[1747472734681,6.555,168.06,167.97,24.60287368]
[1747472734885,138.4416,168.08,167.97,24.60287368]
[1747472735760,5.94990294,168.07,167.97,39.48648384]
[1747472736159,12.13434268,168.1,167.99,39.48422234]
[1747472737058,12.13434268,168.1,168.01,18.64964886]
[1747472737284,12.13434268,168.1,168.03,18.64964886]
[1747472737583,12.13434268,168.1,168.03,24.60064372]
[1747472738287,12.13434268,168.1,168.03,18.64964886]
[1747472738583,6.1852,168.1,168.03,24.60087086]
[1747472739094,31.94858567,168.11,168.03,24.60087086]
[1747472739465,31.94858567,168.11,168.03,18.64964886]
[1747472739867,31.94858567,168.11,168.03,24.60088399]
[1747472741287,31.94858567,168.11,168.03,18.64964886]
[1747472742487,136.9,168.1,167.98,51.8587]
[1747472742784,136.9,168.1,167.99,38.28964886]
[1747472742986,6.1483,168.06,167.96,18.64964886]
[1747472743160,6.1483,168.06,167.95,10.21068906]
[1747472743361,6.1483,168.06,167.96,18.64964886]
[1747472744068,1.5657,168.05,167.96,18.64964886]
[1747472744267,1.5657,168.05,167.95,4.25681125]
[1747472744463,26.0,168.01,167.92,19.64]
[1747472744771,26.0,168.03,167.91,18.64964886]
[1747472744772,26.0,167.99,167.91,18.64964886]
[1747472745785,171.41962691,168.02,167.91,24.60488319]
[1747472746085,26.0,168.01,167.91,24.60488319]
[1747472746285,46.83209332,168.01,167.91,24.60488319]
[1747472746486,1.5657,167.98,167.88,30.25681125]
[1747472746662,1.5657,167.98,167.89,18.64964886]
[1747472746864,26.0,167.96,167.86,18.64964886]
[1747472747286,26.0,167.96,167.85,29.87442726]
[1747472747487,45.64,167.96,167.85,29.87442726]
[1747472747695,45.64,167.96,167.86,18.64964886]
[1747472747897,26.0,167.92,167.85,4.25681125]
[1747472748194,27.6063,167.88,167.85,4.25681125]
[1747472748996,10.0,167.94,167.73,228.8523]
[1747472748997,1.6063,167.93,167.84,19.78]
[1747472749200,12.34595302,167.95,167.84,64.42964886]
[1747472749900,12.34595302,167.95,167.86,18.64964886]
[1747472750278,26.0,167.92,167.78,6.0923]
[1747472750481,26.0,167.91,167.82,18.64964886]
[1747472751111,45.64,167.91,167.8,18.64964886]
[1747472751910,5.95592614,167.9,167.81,18.64964886]
[1747472752112,5.95514624,167.93,167.81,44.64964886]
[1747472752275,12.34603243,167.95,167.85,18.64964886]
[1747472752470,12.34603243,167.95,167.84,26.0]
[1747472752471,1.6063,167.98,167.87,44.64964886]
[1747472753504,7.55939265,167.98,167.87,44.64964886]
[1747472753675,26.0,167.95,167.82,4.25681125]
[1747472753995,26.0,167.95,167.86,18.64964886]
[1747472753996,20.84077646,167.94,167.86,18.64964886]
[1747472754195,26.0,167.91,167.83,18.64964886]
[1747472754398,25.59450756,167.94,167.86,18.64964886]
[1747472754608,26.0,167.96,167.86,18.64964886]
[1747472754974,1.6063,167.98,167.86,18.64964886]
[1747472755185,33.55944574,167.98,167.87,2.20515793]
[1747472755395,33.55944574,167.98,167.89,18.64964886]
[1747472755996,33.55944574,167.98,167.91,18.64964886]
[1747472756202,33.55944574,167.98,167.88,19.9]
[1747472756501,25.59281377,167.99,167.89,18.64964886]
[1747472757577,26.0,167.96,167.89,18.64964886]
[1747472757799,26.0,167.96,167.79,19.64]
[1747472758002,26.0,167.92,167.84,18.64964886]
[1747472758198,5.95415302,167.95,167.84,18.64964886]
[1747472758407,26.0,167.92,167.84,18.64964886]
[1747472758899,31.95544997,167.92,167.86,18.64964886]
[1747472759094,19.92,167.96,167.86,18.64964886]
[1747472759403,26.0,167.97,167.86,18.64964886]
[1747472759571,5.95344406,167.97,167.86,18.64964886]
[1747472759889,5.95344406,167.97,167.89,18.64964886]
[1747472760086,5.95344406,167.97,167.89,38.58964886]
[1747472760412,5.95309663,167.98,167.89,38.58964886]
[1747472760782,6.4884,168.01,167.93,18.64964886]
[1747472760996,148.87002607,168.06,167.98,18.64964886]
[1747472761179,136.9,168.06,167.98,18.64964886]
[1747472761704,19.64,168.1,167.98,18.64964886]
[1747472761705,51.5889321,168.1,167.98,18.64964886]
[1747472761907,25.5889321,168.1,168.0,18.64964886]
[1747472762094,19.64,168.1,168.0,44.64964886]
[1747472762288,5.94817965,168.12,168.04,18.64964886]
[1747472762478,5.94817965,168.12,168.04,38.62964886]
[1747472762675,26.0,168.09,168.04,18.64964886]
[1747472762903,26.0,168.09,168.01,18.64964886]
[1747472763105,26.0,168.05,167.95,5.95392705]
[1747472763309,26.0,168.05,167.96,18.64964886]
[1747472763895,6.642,168.03,167.96,18.64964886]
[1747472764611,26.0,168.0,167.96,18.64964886]
[1747472764787,26.0,168.0,167.9,20.02]
[1747472764988,20.83457348,167.99,167.9,20.02]
[1747472765201,20.83457348,167.99,167.91,18.64964886]
[1747472765401,20.83457348,167.99,167.9,20.02]
[1747472765605,20.83457348,167.99,167.91,18.64964886]
[1747472765808,5.95273528,167.99,167.91,18.64964886]
[1747472766221,138.4146,168.01,167.91,18.64964886]
[1747472766380,5.95240652,168.0,167.91,18.64964886]